[Event "Catalan University-ch 2024"]
[Site "Barcelona"]
[Date "2024.02.24"]
[Round "6.6"]
[White "Roca Planas, Edgar"]
[Black "Ros Alonso, Joana"]
[Result "1-0"]
[ECO "C15"]
[WhiteElo "2248"]
[BlackElo "2033"]
[Annotator "TA"]
[PlyCount "115"]
[EventDate "2024.02.24"]
[EventCountry "ESP"]
[SourceTitle "playchess.com"]
[Source "ChessBase"]
[SourceQuality "1"]
[TimeControl "600+2"]

{[%evp 10,115,19,4,6,0,-3,0,0,0,0,-39,-33,-39,-50,-40,-40,-137,-134,-129,-135,-134,-144,-162,-162,-199,-115,-187,-146,-199,-196,-200,-204,-209,-204,-199,-206,-200,-189,-183,-184,-202,-168,-205,-161,-172,-109,-87,-77,-148,-137,-197,-47,-77,-49,-42,-33,-54,-8,-8,0,-5,84,24,119,130,218,245,241,252,231,239,231,60,159,111,270,256,727,727,717,717,1136,1187,1078,918,982,977,1046,1036,1253,1250,29986,29987,29987,29988,29988,29975,29984,29985,29986,29987,29987,29987,29988,29985,29987,29985]} 1. e4 {[%emt 0:00:03]} e6 {[%emt 0:00:01]} 2. d4 {[%emt 0:00:03]} d5 {[%emt 0:00:01]} 3. Nc3 {[%emt 0:00:03]} Bb4 {[%emt 0:00:02]} 4. a3 {[%emt 0:00:05]} Bxc3+ {[%emt 0:00:02]} 5. bxc3 {[%emt 0:00:02]} Ne7 {[%emt 0:00:07]} 6. Qg4 {[%emt 0:00:05]} O-O {[%emt 0:00:25]} 7. e5 {[%emt 0:00:22]} f5 {[%emt 0:00:38]} 8. Qg3 {[%emt 0:00:17]} c5 {[%emt 0:00:10]} 9. Nf3 {[%emt 0:01:39]} Qc7 {[%emt 0:00:09]} 10. Bd2 {[%emt 0:00:07]} cxd4 {[%emt 0:00:21]} 11. cxd4 {[%emt 0:00:01]} Qxc2 {[%emt 0:00:07]} 12. Be2 {[%emt 0:00:42]} Nbc6 {[%emt 0:00:24][%cal Of5f4]} 13. O-O {[%emt 0:01:15]} (13. Rc1 $15 Qb2 14. Qf4) 13... Nxd4 $1 $17 {[%emt 0:00:27]} 14. Nxd4 {[%emt 0:00:02]} Qxd2 {[%emt 0:00:02]} 15. Rfd1 {[%emt 0:00:06]} Qa5 $1 {[%emt 0:01:02]} 16. Rac1 {[%emt 0:00:40]} Bd7 {[%emt 0:00:18]} 17. Nb3 {[%emt 0:00:01]} Qd8 {[%emt 0:00:25]} (17... Qxa3 $19 {...Ba4 is the strong threat.} 18. Rc7 Ba4) 18. f4 {[%emt 0:00:05]} (18. Nc5 $17) 18... Rc8 {[%emt 0:00:17] White must now prevent ...Rxc1.} 19. Qe3 {[%emt 0:00:25]} (19. Nc5 $17 {might work better.}) 19... Ba4 $19 {[%emt 0:00:37]} 20. Rxc8 {[%emt 0:00:26]} Nxc8 {[%emt 0:00:10]} 21. Rc1 {[%emt 0:00:01]} Bxb3 {[%emt 0:00:21]} 22. Qxb3 {[%emt 0:00:01]} Qb6+ {[%emt 0:00:00]} 23. Qxb6 {[%emt 0:00:11]} Nxb6 {[%emt 0:00:01]} (23... axb6 24. Rc7 $16) 24. Rc7 {[%emt 0:00:02]} Rf7 {[%emt 0:00:02]} 25. Rc5 {[%emt 0:00:01]} h6 {[%emt 0:00:12]} 26. Bh5 {[%emt 0:00:11]} Re7 {[%emt 0:00:25]} 27. Bg6 {[%emt 0:00:05]} Kf8 {[%emt 0:00:10]} (27... d4 $19 {...d3 would now be deadly.} 28. Kf2 Rd7) 28. a4 {[%emt 0:00:10]} a5 $1 {[%emt 0:00:57]} (28... Nxa4 29. Rc8+) 29. Rxa5 {[%emt 0:00:12]} ({Better is} 29. g4) 29... Rc7 $17 {[%emt 0:00:01]} 30. Ra7 {[%emt 0:00:29]} (30. g4 $17 {is a better defense.}) 30... Ke7 {[%emt 0:00:26]} (30... d4 $1 $19 {[%cal Rd4d3] Hoping for ...d3.} 31. a5 Nd5) 31. a5 $15 {[%emt 0:00:14]} Nc8 {[%emt 0:00:04]} 32. Ra8 {[%emt 0:00:04]} Kd7 {[%emt 0:00:32]} 33. g3 {[%emt 0:01:51]} Rc1+ {[%emt 0:00:34]} (33... Rc6 $15 {was preferrable.}) 34. Kf2 $11 {[%emt 0:00:03]} Ra1 {[%emt 0:00:05]} 35. Ke3 {[%emt 0:00:12]} b5 {[%emt 0:00:41] [#]} (35... Ra3+ $11 36. Kd4 Ra1) 36. g4 {[%emt 0:00:06]} (36. Bf7 $1 $16 {aiming for Ra6.} Ke7 37. Bg6) 36... Kc7 {[%emt 0:00:28]} (36... fxg4 $11 37. f5 Re1+ 38. Kd3 (38. Kd4 Ne7 $16) 38... Rxe5) 37. gxf5 $16 {[%emt 0:00:21]} exf5 {[%emt 0:00:21]} (37... Kb7 $2 38. f6 gxf6 (38... Kxa8 $2 39. f7 $18) 39. exf6 $18) (37... Ne7 $16) 38. Bxf5 $18 {[%emt 0:00:05]} Ne7 {[%emt 0:00:06]} 39. Ra7+ {[%emt 0:00:01]} Kd8 {[%emt 0:00:01]} 40. Be6 {[%emt 0:00:11]} b4 {[%emt 0:00:03]} 41. Kd3 $2 {[%emt 0:00:13]} (41. f5 $18) 41... Ra3+ {[%emt 0:00:01] [#]} ({Black should play} 41... Ng6 $1 $14 42. Ke3 (42. Bxd5 Nxf4+ 43. Ke4 Nxd5 $11) (42. Rd7+ Ke8 $17) 42... b3) 42. Kc2 {[%emt 0:00:03]} (42. Kd2 $142 $1) 42... Rc3+ $2 {[%emt 0:00:01]} (42... Nc6 $16 43. Ra8+ (43. Rxg7 $2 {is the wrong capture.} Nd4+ 44. Kb1 Nxe6 $19) 43... Ke7 44. Bxd5 Rxa5 45. Bxc6 Rc5+ 46. Kd3 Rxc6) 43. Kb2 {[%emt 0:00:02]} d4 $2 {[%emt 0:00:03]} (43... Ng6 44. Rd7+ (44. Rxg7 Nxf4 45. Bf5 Ra3 $18) 44... Ke8) 44. Rd7+ $18 {[%emt 0:00:04]} Ke8 {[%emt 0:00:01]} 45. Rxd4 {[%emt 0:00:02]} Nc6 {[%emt 0:00:01]} 46. Bd7+ {[%emt 0:00:02]} Ke7 {[%emt 0:00:01]} 47. Bxc6 {[%emt 0:00:01]} Rxc6 {[%emt 0:00:01]} 48. Rxb4 {[%emt 0:00:01]} Ra6 {[%emt 0:00:04]} 49. Rb5 {[%emt 0:00:04]} Kd7 {[%emt 0:00:05]} 50. f5 {[%emt 0:00:02]} Kc6 {[%emt 0:00:01]} 51. Rb6+ $1 {[%emt 0:00:04]} Rxb6+ {[%emt 0:00:01]} 52. axb6 {[%emt 0:00:01]} Kxb6 {[%emt 0:00:01]} 53. Kc3 {[%emt 0:00:02]} Kc6 {[%emt 0:00:00]} 54. Kd4 {[%emt 0:00:02]} Kd7 {[%emt 0:00:01]} 55. Kd5 {[%emt 0:00:01]} Ke7 {[%emt 0:00:00]} 56. h4 {[%emt 0:00:04]} h5 {[%emt 0:00:07]} 57. Ke4 {[%emt 0:00:02]} Kf7 {[%emt 0:00:01]} 58. Kf4 {[%emt 0:00:08]} 1-0

[Event "Catalan University-ch 2024"]
[Site "Barcelona"]
[Date "2024.02.24"]
[Round "6.7"]
[White "Garcia Escoda, Marc"]
[Black "Gonzalez Alonso, Marti"]
[Result "0-1"]
[ECO "A15"]
[WhiteElo "2074"]
[BlackElo "2012"]
[Annotator "NA RC"]
[PlyCount "126"]
[EventDate "2024.02.24"]
[EventCountry "ESP"]
[SourceTitle "playchess.com"]
[Source "ChessBase"]
[SourceQuality "1"]
[TimeControl "600+2"]

1. Nf3 {[%emt 0:00:02]} Nf6 {[%emt 0:00:15]} 2. g3 {[%emt 0:00:06]} g6 {[%emt 0:00:05]} 3. Bg2 {[%emt 0:00:01]} Bg7 {[%emt 0:00:01]} 4. b3 {[%emt 0:00:01]} b6 {[%emt 0:01:03]} 5. Bb2 {[%emt 0:00:03]} Bb7 {[%emt 0:00:03]} 6. O-O {[%emt 0:00:02]} O-O {[%emt 0:00:03]} 7. c4 {[%emt 0:00:03]} e6 {[%emt 0:01:08]} 8. Qc2 {[%emt 0:00:12]} c5 {[%emt 0:00:25]} 9. Nc3 {[%emt 0:00:03]} d5 {[%emt 0:00:11]} 10. cxd5 {[%emt 0:00:13]} exd5 {[%emt 0:00:09]} 11. d4 {[%emt 0:00:11]} Nbd7 {[%emt 0:00:05]} 12. Rfd1 {[%emt 0:00:05]} Qe7 {[%emt 0:00:06]} 13. Rac1 {[%emt 0:00:16]} Rac8 {[%emt 0:00:06]} 14. Ba3 {[%emt 0:01:11]} Rfd8 {[%emt 0:00:08]} 15. e3 {[%emt 0:00:14]} Qe8 {[%emt 0:00:44]} 16. Qe2 {[%emt 0:00:04]} a6 {[%emt 0:00:19]} 17. Bh3 {[%emt 0:00:12]} Rc7 {[%emt 0:01:07]} 18. Bg2 {[%emt 0:00:08]} c4 {[%emt 0:00:18]} 19. bxc4 {[%emt 0:01:01]} Rxc4 {[%emt 0:00:06]} 20. Nd2 {[%emt 0:00:18]} Rc7 {[%emt 0:00:21]} 21. Na4 {[%emt 0:00:51]} Rdc8 {[%emt 0:00:06]} 22. Rxc7 {[%emt 0:00:13]} Rxc7 {[%emt 0:00:01]} 23. Qd3 {[%emt 0:00:27]} Bf8 {[%emt 0:00:12]} 24. Rb1 {[%emt 0:00:23]} b5 {[%emt 0:00:14]} 25. Bxf8 {[%emt 0:00:18]} Qxf8 {[%emt 0:00:04]} 26. Nb2 {[%emt 0:00:14]} Nb6 {[%emt 0:00:20]} 27. Nd1 {[%emt 0:01:27]} Qc8 {[%emt 0:00:17]} 28. Nb3 {[%emt 0:00:06]} Na4 {[%emt 0:00:43]} 29. Qd2 {[%emt 0:00:51]} Rc2 {[%emt 0:00:31]} 30. Rc1 {[%emt 0:00:00]} Rxc1 {[%emt 0:00:32]} 31. Qxc1 {[%emt 0:00:04]} Qxc1 {[%emt 0:00:15]} 32. Nxc1 {[%emt 0:00:00]} Ne4 {[%emt 0:00:02]} 33. Nd3 {[%emt 0:00:15]} f5 {[%emt 0:00:24]} 34. Kf1 {[%emt 0:00:14]} Kf7 {[%emt 0:00:04]} 35. Ke1 {[%emt 0:00:09]} Ke7 {[%emt 0:00:03]} 36. f3 {[%emt 0:00:27]} Nec3 {[%emt 0:00:12]} 37. Nxc3 {[%emt 0:00:02]} Nxc3 {[%emt 0:00:01]} 38. Nc1 {[%emt 0:00:01]} b4 {[%emt 0:00:03]} 39. Kd2 {[%emt 0:00:05]} a5 {[%emt 0:00:03]} 40. Bf1 {[%emt 0:00:01]} Bc6 {[%emt 0:00:15]} 41. a3 {[%emt 0:00:08]} Nb1+ {[%emt 0:00:08]} 42. Kc2 {[%emt 0:00:03]} Nxa3+ {[%emt 0:00:02]} 43. Kb3 {[%emt 0:00:00]} Kd6 {[%emt 0:00:05]} 44. Ba6 {[%emt 0:00:07]} Nb1 {[%emt 0:00:01]} 45. f4 {[%emt 0:00:18]} Nc3 {[%emt 0:00:02]} 46. Nd3 {[%emt 0:00:18]} Ba4+ {[%emt 0:00:02]} 47. Kb2 {[%emt 0:00:03]} Nd1+ {[%emt 0:00:01]} 48. Kc1 {[%emt 0:00:03]} Nxe3 {[%emt 0:00:01]} 49. Ne5 {[%emt 0:00:02]} Be8 {[%emt 0:00:02]} 50. Kb2 {[%emt 0:00:02]} a4 {[%emt 0:00:02]} 51. Bb7 {[%emt 0:00:01]} Nf1 {[%emt 0:00:03]} 52. Nf3 {[%emt 0:00:02]} Bb5 {[%emt 0:00:02]} 53. Bc8 {[%emt 0:00:02]} Bc4 {[%emt 0:00:01]} 54. Bb7 {[%emt 0:00:02]} a3+ {[%emt 0:00:01]} 55. Kb1 {[%emt 0:00:01]} b3 {[%emt 0:00:03]} 56. Ng5 {[%emt 0:00:04]} Nxh2 {[%emt 0:00:02]} 57. Nxh7 {[%emt 0:00:01]} Nf1 {[%emt 0:00:01]} 58. Nf8 {[%emt 0:00:01]} Nd2+ {[%emt 0:00:02]} 59. Kc1 {[%emt 0:00:01]} b2+ {[%emt 0:00:01]} 60. Kxd2 {[%emt 0:00:02]} b1=Q {[%emt 0:00:02]} 61. Nxg6 {[%emt 0:00:05]} Qd3+ {[%emt 0:00:02]} 62. Kc1 {[%emt 0:00:01]} Qe3+ {[%emt 0:00:03]} 63. Kb1 {[%emt 0:00:04]} a2+ {[%emt 0:00:03]} 0-1

[Event "Catalan University-ch 2024"]
[Site "Barcelona"]
[Date "2024.02.24"]
[Round "6.8"]
[White "Pueyo Amoros, Pau"]
[Black "Sayrol Clols, Josep Maria"]
[Result "0-1"]
[ECO "C01"]
[WhiteElo "1858"]
[BlackElo "1991"]
[Annotator "NA"]
[PlyCount "115"]
[EventDate "2024.02.24"]
[EventCountry "ESP"]
[SourceTitle "playchess.com"]
[Source "ChessBase"]
[SourceQuality "1"]
[TimeControl "600+2"]

1. d4 {[%emt 0:00:05]} Nf6 {[%emt 0:00:02]} 2. c4 {[%emt 0:00:06]} e5 {[%emt 0:00:03]} 3. e3 {[%emt 0:00:21]} exd4 {[%emt 0:00:06]} 4. exd4 {[%emt 0:00:04]} d5 {[%emt 0:00:02]} 5. Nf3 {[%emt 0:00:06]} Be7 {[%emt 0:00:16]} 6. Nc3 {[%emt 0:00:03]} O-O {[%emt 0:00:06]} 7. h3 {[%emt 0:00:43]} c6 {[%emt 0:00:07]} 8. Bd3 {[%emt 0:00:22]} dxc4 {[%emt 0:00:09]} 9. Bxc4 {[%emt 0:00:01]} Nbd7 {[%emt 0:00:14]} 10. O-O {[%emt 0:00:02]} Nb6 {[%emt 0:00:02]} 11. Bb3 {[%emt 0:00:08]} Bf5 {[%emt 0:00:04]} 12. Bf4 {[%emt 0:00:30]} Nfd5 {[%emt 0:00:11]} 13. Be5 {[%emt 0:00:04]} Bf6 {[%emt 0:00:14]} 14. Qd2 {[%emt 0:00:05]} Re8 {[%emt 0:00:17]} 15. Rfe1 {[%emt 0:00:01]} a5 {[%emt 0:00:31]} 16. a3 {[%emt 0:00:07]} a4 {[%emt 0:00:11]} 17. Ba2 {[%emt 0:00:11]} Bg6 {[%emt 0:00:37]} 18. Rac1 {[%emt 0:00:04]} Rc8 {[%emt 0:00:18]} 19. Ne4 {[%emt 0:00:09]} Bxe4 {[%emt 0:02:27]} 20. Rxe4 {[%emt 0:00:02]} Qd7 {[%emt 0:00:22]} 21. Rce1 {[%emt 0:00:11]} Qf5 {[%emt 0:00:17]} 22. Qe2 {[%emt 0:01:06]} Nd7 {[%emt 0:00:53]} 23. Bb1 {[%emt 0:00:09]} Bxe5 {[%emt 0:00:25]} 24. Rxe5 {[%emt 0:00:54]} Rxe5 {[%emt 0:00:03]} 25. Bxf5 {[%emt 0:00:12]} Rxe2 {[%emt 0:00:08]} 26. Rxe2 {[%emt 0:00:01]} N5f6 {[%emt 0:00:12]} 27. Re7 {[%emt 0:00:26]} Rd8 {[%emt 0:00:08]} 28. Ne5 {[%emt 0:00:07]} Nxe5 {[%emt 0:00:04]} 29. dxe5 {[%emt 0:00:06]} Nd5 {[%emt 0:00:16]} 30. Rxb7 {[%emt 0:00:04]} g6 {[%emt 0:00:01]} 31. Be4 {[%emt 0:00:06]} Rc8 {[%emt 0:01:05]} 32. g3 {[%emt 0:01:35]} Ra8 {[%emt 0:00:16]} 33. Kf1 {[%emt 0:00:06]} Ra5 {[%emt 0:00:08]} 34. Ke2 {[%emt 0:00:09]} Rc5 {[%emt 0:00:02]} 35. Kd2 {[%emt 0:00:49]} f5 {[%emt 0:00:07]} 36. exf6 {[%emt 0:00:03]} Nxf6 {[%emt 0:00:02]} 37. Bg2 {[%emt 0:00:06]} Ne8 {[%emt 0:00:17]} 38. Rb8 {[%emt 0:00:12]} Kf7 {[%emt 0:00:02]} 39. Rc8 {[%emt 0:00:01]} Nd6 {[%emt 0:00:06]} 40. Rxc6 {[%emt 0:00:05]} Nc4+ {[%emt 0:00:02]} 41. Ke2 {[%emt 0:00:20]} Re5+ {[%emt 0:00:01]} 42. Kf3 {[%emt 0:00:24]} Nxb2 {[%emt 0:00:03]} 43. Rc2 {[%emt 0:00:16]} Nd3 {[%emt 0:00:03]} 44. Rc7+ {[%emt 0:00:33]} Kf6 {[%emt 0:00:03]} 45. Bf1 {[%emt 0:00:11]} Rf5+ {[%emt 0:00:02]} 46. Ke4 {[%emt 0:00:03]} Nxf2+ {[%emt 0:00:02]} 47. Kd4 {[%emt 0:00:03]} Rf3 {[%emt 0:00:03]} 48. Ra7 {[%emt 0:00:02]} Rxa3 {[%emt 0:00:02]} 49. Bb5 {[%emt 0:00:01]} Rxg3 {[%emt 0:00:05]} 50. Bxa4 {[%emt 0:00:02]} h5 {[%emt 0:00:02]} 51. h4 {[%emt 0:00:01]} Rg4+ {[%emt 0:00:02]} 52. Ke3 {[%emt 0:00:01]} Ne4 {[%emt 0:00:04]} 53. Kf3 {[%emt 0:00:04]} Nd2+ {[%emt 0:00:07]} 54. Ke3 {[%emt 0:00:01]} Nc4+ {[%emt 0:00:02]} 55. Kf3 {[%emt 0:00:02]} Ne5+ {[%emt 0:00:01]} 56. Ke3 {[%emt 0:00:02]} Rxh4 {[%emt 0:00:02]} 57. Bb3 {[%emt 0:00:02]} Rh3+ {[%emt 0:00:02]} 58. Kd4 {[%emt 0:00:08]} 0-1

[Event "Catalan University-ch 2024"]
[Site "Barcelona"]
[Date "2024.02.24"]
[Round "6.9"]
[White "Marti Olivella, Gerard"]
[Black "Marabajan Navas, Saul"]
[Result "0-1"]
[ECO "B23"]
[WhiteElo "1869"]
[BlackElo "2036"]
[Annotator "NA"]
[PlyCount "84"]
[EventDate "2024.02.24"]
[EventCountry "ESP"]
[SourceTitle "playchess.com"]
[Source "ChessBase"]
[SourceQuality "1"]
[TimeControl "600+2"]

1. e4 {[%emt 0:00:02]} c5 {[%emt 0:00:01]} 2. Nc3 {[%emt 0:00:02]} Nc6 {[%emt 0:00:02]} 3. f4 {[%emt 0:00:02]} g6 {[%emt 0:00:02]} 4. Nf3 {[%emt 0:00:01]} Bg7 {[%emt 0:00:01]} 5. Bb5 {[%emt 0:00:02]} Nd4 {[%emt 0:00:18]} 6. O-O {[%emt 0:00:02]} a6 {[%emt 0:00:12]} 7. Bd3 {[%emt 0:00:02]} e6 {[%emt 0:00:16]} 8. Nxd4 {[%emt 0:00:08]} Bxd4+ {[%emt 0:00:03]} 9. Kh1 {[%emt 0:00:03]} Bg7 {[%emt 0:00:12]} 10. Ne2 {[%emt 0:00:15]} d5 {[%emt 0:00:24]} 11. c3 {[%emt 0:00:26]} dxe4 {[%emt 0:00:11]} 12. Bxe4 {[%emt 0:00:01]} Nf6 {[%emt 0:00:14]} 13. Bf3 {[%emt 0:00:04]} O-O {[%emt 0:00:14]} 14. d4 {[%emt 0:00:07]} cxd4 {[%emt 0:00:02]} 15. Nxd4 {[%emt 0:00:03]} Nd5 {[%emt 0:00:17]} 16. c4 {[%emt 0:01:46]} Nxf4 {[%emt 0:00:58]} 17. Bxf4 {[%emt 0:00:34]} Bxd4 {[%emt 0:00:02]} 18. Qe2 {[%emt 0:00:59]} f6 {[%emt 0:01:50]} 19. Rad1 {[%emt 0:00:41]} e5 {[%emt 0:00:11]} 20. Bh6 {[%emt 0:00:10]} Re8 {[%emt 0:00:04]} 21. Bd5+ {[%emt 0:00:05]} Be6 {[%emt 0:00:05]} 22. Bxb7 {[%emt 0:00:30]} Rb8 {[%emt 0:00:30]} 23. Bxa6 {[%emt 0:00:31]} Qe7 {[%emt 0:01:12]} 24. b3 {[%emt 0:00:17]} g5 {[%emt 0:00:20]} 25. Qf3 {[%emt 0:00:24]} Rb6 {[%emt 0:01:02]} 26. Bb5 {[%emt 0:00:07]} Bd7 {[%emt 0:00:01]} 27. Bxd7 {[%emt 0:01:32]} Qxd7 {[%emt 0:00:01]} 28. h4 {[%emt 0:00:02]} gxh4 {[%emt 0:00:38]} 29. Qh5 {[%emt 0:00:26]} Qf7 {[%emt 0:00:14]} 30. Qxh4 {[%emt 0:00:11]} f5 {[%emt 0:00:08]} 31. Bc1 {[%emt 0:00:21]} Ra8 {[%emt 0:00:24]} 32. Qg5+ {[%emt 0:01:00]} Rg6 {[%emt 0:00:01]} 33. Qxf5 {[%emt 0:00:01]} Qxf5 {[%emt 0:00:01]} 34. Rxf5 {[%emt 0:00:02]} Rxa2 {[%emt 0:00:01]} 35. Rdf1 {[%emt 0:00:10]} Ra8 {[%emt 0:00:55]} 36. Rf7 {[%emt 0:00:02]} h5 {[%emt 0:00:03]} 37. Kh2 {[%emt 0:00:02]} e4 {[%emt 0:00:02]} 38. Kh3 {[%emt 0:00:01]} e3 {[%emt 0:00:02]} 39. Re1 {[%emt 0:00:01]} Re8 {[%emt 0:00:01]} 40. Ba3 {[%emt 0:00:02]} Kxf7 {[%emt 0:00:01]} 41. c5 {[%emt 0:00:04]} e2 {[%emt 0:00:03]} 42. c6 {[%emt 0:00:01]} Rxc6 {[%emt 0:00:01]} 0-1

[Event "Catalan University-ch 2024"]
[Site "Barcelona"]
[Date "2024.02.24"]
[Round "6.10"]
[White "Ros Roger, Alexandre"]
[Black "Masalias Mira, Marc"]
[Result "0-1"]
[ECO "E32"]
[WhiteElo "1739"]
[BlackElo "1826"]
[Annotator "NA RC"]
[PlyCount "62"]
[EventDate "2024.02.24"]
[EventCountry "ESP"]
[SourceTitle "playchess.com"]
[Source "ChessBase"]
[SourceQuality "1"]
[TimeControl "600+2"]

1. d4 {[%emt 0:00:02]} Nf6 {[%emt 0:00:01]} 2. c4 {[%emt 0:00:02]} e6 {[%emt 0:00:00]} 3. Nc3 {[%emt 0:00:05]} Bb4 {[%emt 0:00:01]} 4. Qc2 {[%emt 0:00:18]} b6 {[%emt 0:00:22]} 5. Bg5 {[%emt 0:00:26]} c5 {[%emt 0:00:59]} 6. e3 {[%emt 0:00:44]} Bb7 {[%emt 0:00:16]} 7. Nf3 {[%emt 0:00:43]} h6 {[%emt 0:00:08]} 8. Bh4 {[%emt 0:00:11]} g5 {[%emt 0:00:45]} 9. Bg3 {[%emt 0:00:11]} Ne4 {[%emt 0:00:09]} 10. Be2 {[%emt 0:00:44]} h5 {[%emt 0:00:33]} 11. O-O-O {[%emt 0:01:19]} Bxc3 {[%emt 0:01:37]} 12. bxc3 {[%emt 0:00:25]} h4 {[%emt 0:00:08]} 13. Bd3 {[%emt 0:01:16]} f5 {[%emt 0:01:13]} 14. Be5 {[%emt 0:00:21]} Rg8 {[%emt 0:00:59]} 15. h3 {[%emt 0:00:39]} Na6 {[%emt 0:00:50]} 16. Rhf1 {[%emt 0:01:00]} d6 {[%emt 0:01:00]} 17. Bh2 {[%emt 0:00:21]} Qd7 {[%emt 0:00:07]} 18. Nd2 {[%emt 0:01:33]} Nxd2 {[%emt 0:00:13]} 19. Rxd2 {[%emt 0:00:14]} Bxg2 {[%emt 0:00:10]} 20. Rg1 {[%emt 0:00:01]} Bxh3 {[%emt 0:00:05]} 21. Be2 {[%emt 0:00:02]} O-O-O {[%emt 0:00:13]} 22. d5 {[%emt 0:00:03]} e5 {[%emt 0:00:10]} 23. e4 {[%emt 0:00:03]} f4 {[%emt 0:00:06]} 24. Bf3 {[%emt 0:00:03]} g4 {[%emt 0:00:04]} 25. Be2 {[%emt 0:00:02]} g3 {[%emt 0:00:02]} 26. fxg3 {[%emt 0:00:01]} hxg3 {[%emt 0:00:01]} 27. Bxg3 {[%emt 0:00:02]} Rxg3 {[%emt 0:00:01]} 28. Rxg3 {[%emt 0:00:03]} fxg3 {[%emt 0:00:01]} 29. Bf3 {[%emt 0:00:02]} Rf8 {[%emt 0:00:11]} 30. Qd1 {[%emt 0:00:03]} Qg7 {[%emt 0:00:15]} 31. Qg1 {[%emt 0:00:02]} Rxf3 {[%emt 0:00:02]} 0-1